fUST/lending_fUST_20240912
["ID","MTS","AMOUNT","RATE_DAILY","PERIOD"]
[337812440,1726128790796,-539.03,0.00016438,2]
[337812441,1726128790824,-511.86,0.00016438,2]
[337812442,1726128790849,-529.70543419,0.00016438,2]
[337812443,1726128790873,-500.0,0.00016438,2]
[337812444,1726128790898,-500.0,0.00016438,2]
[337812445,1726128790924,-500.0,0.00016438,2]
[337812446,1726128790948,-500.0,0.00016438,2]
[337812447,1726128790972,-500.0,0.00016438,2]
[337812448,1726128790997,-500.0,0.00016438,2]
[337812449,1726128791021,-500.0,0.00016438,2]
[337812450,1726128791047,-500.0,0.00016438,2]
[337812451,1726128791072,-500.0,0.00016438,2]
[337812452,1726128791097,-771.91,0.00016438,2]
[337812453,1726128791120,-500.0,0.00016438,2]
[337812454,1726128791144,-500.0,0.00016438,2]
[337812455,1726128791167,-500.0,0.00016438,2]
[337812456,1726128791201,-500.0,0.00016438,2]
[337812457,1726128791224,-500.0,0.00016438,2]
[337812458,1726128791248,-563.05,0.00016438,2]
[337812459,1726128791270,-500.0,0.00016438,2]
[337812460,1726128791297,-501.49033047,0.00016438,2]
[337812461,1726128791320,-500.0,0.00016438,2]
[337812462,1726128791343,-628.26,0.00016438,2]
[337812463,1726128791367,-500.0,0.00016438,2]
[337812464,1726128791391,-500.0,0.00016438,2]
[337812465,1726128791417,-500.0,0.00016438,2]
[337812466,1726128791447,-772.41,0.00016438,2]
[337812467,1726128791470,-500.0,0.00016438,2]
[337812468,1726128791495,-500.0,0.00016438,2]
[337812469,1726128791522,-500.0,0.00016438,2]
[337812470,1726128791546,-500.0,0.00016438,2]
[337812471,1726128791569,-500.0,0.00016438,2]
[337812472,1726128791593,-500.0,0.00016438,2]
[337812473,1726128791619,-500.0,0.00016438,2]
[337812474,1726128791643,-500.0,0.00016438,2]
[337812475,1726128791669,-608.89,0.00016438,2]
[337812476,1726128791700,-766.42,0.00016438,2]
[337812477,1726128791727,-500.0,0.00016438,2]
[337812478,1726128791754,-4279.87,0.00016438,2]
[337812479,1726128791777,-500.0,0.00016438,2]
[337812480,1726128791800,-500.0,0.00016438,2]
[337812481,1726128791824,-683.57,0.00016438,2]
[337812482,1726128791850,-782.43,0.00016438,2]
[337812483,1726128791873,-6135.34,0.00016438,2]
[337812484,1726128791897,-500.0,0.00016438,2]
[337812485,1726128791919,-502.76981014,0.00016438,2]
[337812486,1726128791944,-5062.23,0.00016438,2]
[337812487,1726128791967,-500.0,0.00016438,2]
[337812488,1726128791990,-500.0,0.00016438,2]
[337812489,1726128792013,-500.0,0.00016438,2]
[337812490,1726128792037,-261.20595118,0.00016438,2]
[337812491,1726128792060,-404.13349103,0.00016438,2]
[337812492,1726128792083,-1408.02,0.00016438,2]
[337812493,1726128792108,-692.14,0.00016438,2]
[337812494,1726128792132,-200.0,0.00016438,2]
[337812496,1726128891112,308.5099061,0.00015618,2]
[337812498,1726128914309,250.0,0.00015735,2]
[337812499,1726128914513,250.0,0.00015779,2]
[337812500,1726128914744,250.0,0.00015822,2]
[337812501,1726128914971,250.0,0.00015865,2]
[337812502,1726128915209,250.0,0.00015908,2]
[337812503,1726128915819,250.0,0.00015951,2]
[337812504,1726128915913,250.0,0.00015994,2]
[337812505,1726128952175,24900.0,0.00015287,2]
[337812510,1726129345129,-711.6503578,0.00016017,2]
[337812511,1726129345157,-250.0,0.00016037,2]
[337812512,1726129345184,-250.0,0.00016081,2]
[337812513,1726129345210,-250.0,0.00016124,2]
[337812514,1726129345238,-250.0,0.00016167,2]
[337812515,1726129345267,-250.0,0.0001621,2]
[337812516,1726129345295,-250.0,0.00016253,2]
[337812517,1726129345324,-250.0,0.00016296,2]
[337812518,1726129345354,-4253.15209389,0.00016337,2]
[337812519,1726129345379,-250.0,0.00016339,2]
[337812520,1726129345406,-250.0,0.00016383,2]
[337812521,1726129345432,-250.0,0.00016426,2]
[337812522,1726129345456,-300.0,0.00016427,2]
[337812523,1726129358192,-26175.3949769,0.00016428,2]
[337812524,1726129358218,-36895.21274511,0.00016428,2]
[337812525,1726129387496,-7764.80245169,0.00016428,2]
[337812526,1726129387523,-300.0,0.00016436,2]
[337812527,1726129387554,-500.0,0.00016437,2]
[337812528,1726129387580,-500.0,0.00016437,2]
[337812529,1726129387606,-530.97269933,0.00016437,2]
[337812530,1726129387632,-500.0,0.00016437,2]
[337812531,1726129387656,-208.74097959,0.00016437,2]
[337812532,1726129387685,-500.0,0.00016437,2]
[337812533,1726129387710,-500.0,0.00016437,2]
[337812534,1726129387734,-384.63263351,0.00016437,2]
[337812535,1726129387759,-508.56346041,0.00016437,2]
[337812536,1726129387783,-500.0,0.00016437,2]
[337812537,1726129387807,-500.0,0.00016437,2]
[337812538,1726129387831,-500.0,0.00016437,2]
[337812539,1726129387856,-500.0,0.00016437,2]
[337812540,1726129387881,-500.0,0.00016437,2]
[337812541,1726129387906,-500.0,0.00016437,2]
[337812542,1726129387933,-500.0,0.00016437,2]
[337812543,1726129387958,-176.3376885,0.00016437,2]
[337812544,1726129387983,-500.0,0.00016437,2]
[337812545,1726129388008,-500.0,0.00016437,2]
[337812546,1726129388031,-500.0,0.00016437,2]
[337812547,1726129388056,-500.0,0.00016437,2]
[337812548,1726129388080,-500.0,0.00016437,2]
[337812549,1726129388104,-500.0,0.00016437,2]
[337812550,1726129388128,-500.0,0.00016437,2]
[337812551,1726129388153,-500.0,0.00016437,2]
[337812552,1726129388179,-211.60951662,0.00016437,2]
[337812553,1726129388205,-500.0,0.00016437,2]
[337812554,1726129388230,-500.0,0.00016437,2]
[337812555,1726129388254,-500.0,0.00016437,2]
[337812556,1726129388279,-500.0,0.00016437,2]
[337812557,1726129388305,-500.0,0.00016437,2]
[337812558,1726129388329,-500.0,0.00016437,2]
[337812559,1726129388354,-500.0,0.00016437,2]
[337812560,1726129388381,-543.43729759,0.00016437,2]
[337812561,1726129388406,-500.0,0.00016437,2]
[337812562,1726129388432,-500.0,0.00016437,2]
[337812563,1726129388457,-512.42518582,0.00016437,2]
[337812564,1726129388480,-500.0,0.00016438,2]
[337812565,1726129388503,-832.04,0.00016438,2]
[337812566,1726129388529,-500.0,0.00016438,2]
[337812567,1726129388557,-500.0,0.00016438,2]
[337812568,1726129388582,-500.0,0.00016438,2]
[337812569,1726129388608,-500.0,0.00016438,2]
[337812570,1726129388637,-512.1974134,0.00016438,2]
[337812571,1726129388670,-500.0,0.00016438,2]
[337812572,1726129388704,-500.0,0.00016438,2]
[337812573,1726129388732,-500.0,0.00016438,2]
[337812574,1726129388762,-500.25105355,0.00016438,2]
[337812575,1726129388791,-500.0,0.00016438,2]
[337812576,1726129388820,-500.0,0.00016438,2]
[337812577,1726129388853,-500.0,0.00016438,2]
[337812578,1726129388884,-500.0,0.00016438,2]
[337812579,1726129388919,-500.0,0.00016438,2]
[337812580,1726129388952,-504.72525001,0.00016438,2]
[337812581,1726129388982,-557.29,0.00016438,2]
[337812582,1726129389014,-484.30394136,0.00016438,2]
[337812583,1726129389049,-500.0,0.00016438,2]
[337812584,1726129389082,-500.0,0.00016438,2]
[337812585,1726129389113,-500.0,0.00016438,2]
[337812586,1726129389141,-199.97012897,0.00016438,2]
[337812587,1726129389168,-500.0,0.00016438,2]
[337812588,1726129389199,-500.0,0.00016438,2]
[337812589,1726129389229,-283.10182136,0.00016438,2]
[337812590,1726129389259,-500.0,0.00016438,2]
[337812591,1726129389290,-500.0,0.00016438,2]
[337812592,1726129389318,-500.0,0.00016438,2]
[337812593,1726129389343,-500.0,0.00016438,2]
[337812594,1726129389372,-500.0,0.00016438,2]
[337812595,1726129389401,-500.0,0.00016438,2]
[337812596,1726129389434,-500.0,0.00016438,2]
[337812597,1726129389464,-500.0,0.00016438,2]
[337812598,1726129389489,-500.0,0.00016438,2]
[337812599,1726129389520,-500.0,0.00016438,2]
[337812600,1726129389548,-500.0,0.00016438,2]
[337812601,1726129389576,-500.0,0.00016438,2]
[337812602,1726129389602,-500.0,0.00016438,2]
[337812603,1726129389629,-500.0,0.00016438,2]
[337812604,1726129389655,-708.04,0.00016438,2]
[337812605,1726129389684,-452.04369177,0.00016438,2]
[337812606,1726129389712,-434.53322764,0.00016438,2]
[337812607,1726129389739,-500.0,0.00016438,2]
[337812608,1726129389767,-500.0,0.00016438,2]
[337812609,1726129389795,-500.0,0.00016438,2]
[337812610,1726129389822,-500.0,0.00016438,2]
[337812611,1726129389850,-500.0,0.00016438,2]
[337812612,1726129389877,-725.56,0.00016438,2]
[337812613,1726129389905,-500.0,0.00016438,2]
[337812614,1726129389933,-500.0,0.00016438,2]
[337812615,1726129389961,-500.0,0.00016438,2]
[337812616,1726129389990,-500.0,0.00016438,2]
[337812617,1726129390018,-500.0,0.00016438,2]
[337812618,1726129390048,-500.0,0.00016438,2]
[337812619,1726129390075,-500.0,0.00016438,2]
[337812620,1726129390104,-500.0,0.00016438,2]
[337812621,1726129390131,-500.0,0.00016438,2]
[337812622,1726129390158,-500.0,0.00016438,2]
[337812623,1726129390186,-500.0,0.00016438,2]
[337812624,1726129390214,-500.0,0.00016438,2]
[337812625,1726129390242,-500.0,0.00016438,2]
[337812626,1726129390270,-500.0,0.00016438,2]
[337812627,1726129390299,-500.0,0.00016438,2]
[337812628,1726129390326,-524.20578855,0.00016438,2]
[337812629,1726129390353,-500.0,0.00016438,2]
[337812630,1726129390383,-500.0,0.00016438,2]
[337812631,1726129390411,-500.0,0.00016438,2]
[337812632,1726129390441,-500.0,0.00016438,2]
[337812633,1726129390470,-559.08,0.00016438,2]
[337812634,1726129390497,-500.0,0.00016438,2]
[337812635,1726129390523,-500.0,0.00016438,2]
[337812636,1726129390551,-500.0,0.00016438,2]
[337812637,1726129390580,-600.94,0.00016438,2]
[337812638,1726129390606,-500.0,0.00016438,2]
[337812639,1726129390633,-500.0,0.00016438,2]
[337812640,1726129390659,-501.65944163,0.00016438,2]
[337812641,1726129390687,-500.0,0.00016438,2]
[337812642,1726129390719,-500.0,0.00016438,2]
[337812643,1726129390745,-500.0,0.00016438,2]
[337812644,1726129390770,-500.0,0.00016438,2]
[337812645,1726129390796,-500.0,0.00016438,2]
[337812646,1726129390821,-500.0,0.00016438,2]
[337812647,1726129390847,-500.0,0.00016438,2]
[337812648,1726129390873,-500.0,0.00016438,2]
[337812649,1726129390898,-500.0,0.00016438,2]
[337812650,1726129390923,-500.0,0.00016438,2]
[337812651,1726129390950,-500.0,0.00016438,2]
[337812652,1726129390975,-500.0,0.00016438,2]
[337812653,1726129391000,-567.40747619,0.00016438,2]
[337812654,1726129391026,-500.0,0.00016438,2]
[337812655,1726129391051,-500.0,0.00016438,2]
[337812656,1726129391077,-500.0,0.00016438,2]
[337812657,1726129391103,-500.0,0.00016438,2]
[337812658,1726129391128,-500.0,0.00016438,2]
[337812659,1726129391154,-500.0,0.00016438,2]
[337812660,1726129391179,-500.0,0.00016438,2]
[337812661,1726129391207,-734.39,0.00016438,2]
[337812662,1726129391495,-500.0,0.00016438,2]
[337812663,1726129391534,-625.11,0.00016438,2]
[337812664,1726129391562,-500.0,0.00016438,2]
[337812665,1726129391587,-503.36597922,0.00016438,2]
[337812666,1726129391612,-500.0,0.00016438,2]
[337812667,1726129391638,-500.0,0.00016438,2]
[337812668,1726129391665,-500.0,0.00016438,2]
[337812669,1726129391688,-500.0,0.00016438,2]
[337812670,1726129391711,-500.0,0.00016438,2]
[337812671,1726129391734,-500.0,0.00016438,2]
[337812672,1726129391758,-500.0,0.00016438,2]
[337812673,1726129391782,-500.0,0.00016438,2]
[337812674,1726129391811,-500.0,0.00016438,2]
[337812675,1726129391837,-500.0,0.00016438,2]
[337812676,1726129391869,-501.52088581,0.00016438,2]
[337812677,1726129391892,-500.0,0.00016438,2]
[337812678,1726129391916,-500.0,0.00016438,2]
[337812679,1726129391942,-210.64149446,0.00016438,2]
[337812680,1726129391968,-500.0,0.00016438,2]
[337812681,1726129391991,-846.9,0.00016438,2]
[337812682,1726129392016,-566.95,0.00016438,2]
[337812683,1726129392043,-171.3,0.00016438,2]
[337812684,1726129392068,-602.82777989,0.00016438,2]
[337812685,1726129392092,-500.0,0.00016438,2]
[337812686,1726129392118,-500.0,0.00016438,2]
[337812687,1726129392144,-500.0,0.00016438,2]
[337812688,1726129392170,-500.0,0.00016438,2]
[337812689,1726129392196,-500.0,0.00016438,2]
[337812690,1726129392221,-500.0,0.00016438,2]
[337812691,1726129392246,-500.0,0.00016438,2]
[337812692,1726129392271,-500.0,0.00016438,2]
[337812693,1726129392295,-502.70032257,0.00016438,2]
[337812694,1726129392320,-1143.67,0.00016438,2]
[337812695,1726129392344,-500.0,0.00016438,2]
[337812696,1726129392370,-509.97526314,0.00016438,2]
[337812697,1726129392393,-500.87703025,0.00016438,2]
[337812698,1726129392417,-500.0,0.00016438,2]
[337812699,1726129392441,-500.0,0.00016438,2]
[337812700,1726129392465,-500.0,0.00016438,2]
[337812701,1726129392491,-500.0,0.00016438,2]
[337812702,1726129392514,-500.0,0.00016438,2]
[337812703,1726129392538,-500.0,0.00016438,2]
[337812704,1726129392563,-952.65,0.00016438,2]
[337812705,1726129392586,-500.0,0.00016438,2]
[337812706,1726129392610,-500.0,0.00016438,2]
[337812707,1726129392635,-645.91,0.00016438,2]
[337812708,1726129392658,-222.6,0.00016438,2]
[337812709,1726129392681,-501.61555016,0.00016438,2]
[337812710,1726129392705,-500.0,0.00016438,2]
[337812711,1726129392729,-500.0,0.00016438,2]
[337812712,1726129392752,-690.28,0.00016438,2]
[337812713,1726129392775,-500.0,0.00016438,2]
[337812714,1726129392799,-500.0,0.00016438,2]
[337812715,1726129392823,-386.46457088,0.00016438,2]
[337812717,1726129392846,-500.0,0.00016438,2]
[337812718,1726129392870,-500.0,0.00016438,2]
[337812719,1726129392893,-500.0,0.00016438,2]
[337812720,1726129392917,-500.0,0.00016438,2]
[337812721,1726129392941,-452.70994671,0.00016438,2]
[337812722,1726129392965,-588.12,0.00016438,2]
[337812723,1726129392989,-500.0,0.00016438,2]
[337812724,1726129393013,-501.60185546,0.00016438,2]
[337812725,1726129393037,-500.0,0.00016438,2]
[337812726,1726129393061,-500.0,0.00016438,2]
[337812727,1726129393084,-500.0,0.00016438,2]
[337812728,1726129393108,-570.2,0.00016438,2]
[337812729,1726129393133,-7226.86,0.00016438,2]
[337812730,1726129393158,-500.0,0.00016438,2]
[337812731,1726129393182,-604.9,0.00016438,2]
[337812732,1726129393205,-500.0,0.00016438,2]
[337812733,1726129393228,-500.0,0.00016438,2]
[337812734,1726129393251,-500.0,0.00016438,2]
[337812735,1726129393275,-500.0,0.00016438,2]
[337812736,1726129393299,-500.0,0.00016438,2]
[337812737,1726129393323,-1341.05,0.00016438,2]
[337812738,1726129393346,-500.0,0.00016438,2]
[337812739,1726129393372,-500.0,0.00016438,2]
[337812740,1726129393397,-500.0,0.00016438,2]
[337812741,1726129393422,-500.0,0.00016438,2]
[337812742,1726129393447,-500.0,0.00016438,2]
[337812743,1726129393472,-500.0,0.00016438,2]
[337812744,1726129393495,-502.32586021,0.00016438,2]
[337812745,1726129393519,-500.0,0.00016438,2]
[337812746,1726129393544,-500.0,0.00016438,2]
[337812747,1726129393570,-500.0,0.00016438,2]
[337812748,1726129393593,-500.0,0.00016438,2]
[337812749,1726129393616,-500.0,0.00016438,2]
[337812750,1726129393640,-500.0,0.00016438,2]
[337812751,1726129393663,-500.0,0.00016438,2]
[337812752,1726129393688,-749.69,0.00016438,2]
[337812753,1726129393710,-500.0,0.00016438,2]
[337812754,1726129393733,-500.0,0.00016438,2]
[337812755,1726129393757,-500.0,0.00016438,2]
[337812756,1726129393782,-515.64543367,0.00016438,2]
[337812757,1726129393808,-500.0,0.00016438,2]
[337812758,1726129393832,-645.40423241,0.00016438,2]
[337812759,1726129393856,-500.0,0.00016438,2]
[337812760,1726129393881,-500.0,0.00016438,2]
[337812761,1726129393909,-500.0,0.00016438,2]
[337812762,1726129393942,-500.0,0.00016438,2]
[337812763,1726129393966,-500.0,0.00016438,2]
[337812764,1726129393991,-503.8674566,0.00016438,2]
[337812765,1726129394015,-500.0,0.00016438,2]
[337812766,1726129394039,-500.0,0.00016438,2]
[337812767,1726129394063,-500.0,0.00016438,2]
[337812768,1726129394088,-645.67,0.00016438,2]
[337812769,1726129394112,-500.0,0.00016438,2]
[337812770,1726129394136,-500.0,0.00016438,2]
[337812771,1726129394159,-500.0,0.00016438,2]
[337812772,1726129394183,-502.79949883,0.00016438,2]
[337812773,1726129394208,-505.80811296,0.00016438,2]
[337812774,1726129394234,-500.0,0.00016438,2]
[337812775,1726129394259,-500.0,0.00016438,2]
[337812776,1726129394284,-500.0,0.00016438,2]
[337812777,1726129394456,-500.0,0.00016438,2]
[337812778,1726129394485,-500.0,0.00016438,2]
[337812779,1726129394511,-500.70365415,0.00016438,2]
[337812780,1726129394538,-500.0,0.00016438,2]
[337812781,1726129394565,-500.0,0.00016438,2]
[337812782,1726129394590,-500.0,0.00016438,2]
[337812783,1726129394618,-500.0,0.00016438,2]
[337812784,1726129394645,-500.0,0.00016438,2]
[337812785,1726129394671,-503.39027823,0.00016438,2]
[337812786,1726129394696,-500.0,0.00016438,2]
[337812787,1726129394721,-500.0,0.00016438,2]
[337812788,1726129394746,-500.0,0.00016438,2]
[337812789,1726129394772,-500.0,0.00016438,2]
[337812790,1726129394798,-500.0,0.00016438,2]
[337812791,1726129394822,-500.0,0.00016438,2]
[337812792,1726129394848,-587.97145544,0.00016438,2]
[337812793,1726129394875,-500.0,0.00016438,2]
[337812794,1726129394904,-500.0,0.00016438,2]
[337812795,1726129394936,-500.0,0.00016438,2]
[337812796,1726129394963,-500.0,0.00016438,2]
[337812797,1726129394994,-500.0,0.00016438,2]
[337812798,1726129395019,-500.0,0.00016438,2]
[337812799,1726129395047,-500.0,0.00016438,2]
[337812800,1726129395073,-596.76,0.00016438,2]
[337812801,1726129395097,-500.0,0.00016438,2]
[337812802,1726129395122,-202.4838026,0.00016438,2]
[337812803,1726129395149,-500.0,0.00016438,2]
[337812804,1726129395175,-500.0,0.00016438,2]
[337812805,1726129395203,-500.0,0.00016438,2]
[337812806,1726129395229,-500.0,0.00016438,2]
[337812807,1726129395256,-500.0,0.00016438,2]
[337812808,1726129395281,-500.0,0.00016438,2]
[337812809,1726129395305,-513.13708414,0.00016438,2]
[337812810,1726129395331,-500.0,0.00016438,2]
[337812811,1726129395357,-500.0,0.00016438,2]
[337812812,1726129395388,-243.42413223,0.00016438,2]
[337812813,1726129395414,-500.0,0.00016438,2]
[337812814,1726129395441,-500.0,0.00016438,2]
[337812815,1726129395467,-452.47343848,0.00016438,2]
[337812816,1726129395493,-229.38,0.00016438,2]
[337812817,1726129395519,-717.44,0.00016438,2]
[337812818,1726129395547,-500.0,0.00016438,2]
[337812819,1726129395575,-500.0,0.00016438,2]
[337812820,1726129395601,-500.0,0.00016438,2]
[337812821,1726129395630,-500.0,0.00016438,2]
[337812822,1726129395658,-500.0,0.00016438,2]
[337812823,1726129395684,-516.13,0.00016438,2]
[337812824,1726129395711,-500.0,0.00016438,2]
[337812825,1726129395734,-500.0,0.00016438,2]
[337812826,1726129395759,-500.0,0.00016438,2]
[337812827,1726129395783,-556.12,0.00016438,2]
[337812828,1726129395808,-503.87743974,0.00016438,2]
[337812829,1726129395833,-500.0,0.00016438,2]
[337812830,1726129395858,-539.59,0.00016438,2]
[337812831,1726129395883,-500.0,0.00016438,2]
[337812832,1726129395908,-500.0,0.00016438,2]
[337812833,1726129395933,-500.0,0.00016438,2]
[337812834,1726129395959,-739.75,0.00016438,2]
[337812835,1726129395983,-500.0,0.00016438,2]
[337812836,1726129396009,-500.0,0.00016438,2]
[337812837,1726129396033,-500.0,0.00016438,2]
[337812838,1726129396058,-500.0,0.00016438,2]
[337812839,1726129396082,-500.0,0.00016438,2]
[337812840,1726129396107,-500.0,0.00016438,2]
[337812841,1726129396131,-500.0,0.00016438,2]
[337812842,1726129396155,-500.0,0.00016438,2]
[337812843,1726129396181,-500.0,0.00016438,2]
[337812844,1726129396208,-500.0,0.00016438,2]
[337812845,1726129396234,-541.55867929,0.00016438,2]
[337812846,1726129396259,-645.1,0.00016438,2]
[337812847,1726129396283,-500.0,0.00016438,2]
[337812848,1726129396310,-500.0,0.00016438,2]
[337812849,1726129396336,-740.23,0.00016438,2]
[337812850,1726129396361,-500.0,0.00016438,2]
[337812851,1726129396391,-632.03,0.00016438,2]
[337812852,1726129396419,-710.0,0.00016438,2]
[337812853,1726129396446,-7865.78,0.00016438,2]
[337812854,1726129396472,-500.0,0.00016438,2]
[337812855,1726129396498,-734.48,0.00016438,2]
[337812856,1726129396524,-500.0,0.00016438,2]
[337812857,1726129396549,-500.0,0.00016438,2]
[337812858,1726129396576,-621.75,0.00016438,2]
[337812859,1726129396600,-4851.3,0.00016438,2]
[337812860,1726129396624,-749.82,0.00016438,2]
[337812861,1726129396647,-500.0,0.00016438,2]
[337812862,1726129396671,-4101.54,0.00016438,2]
[337812863,1726129396697,-1505.08,0.00016438,2]
[337812864,1726129396760,-500.0,0.00016438,2]
[337812865,1726129396784,-500.0,0.00016438,2]
[337812866,1726129396808,-500.0,0.00016438,2]
[337812867,1726129396831,-508.07540797,0.00016438,2]
[337812868,1726129396854,-500.0,0.00016438,2]
[337812869,1726129396878,-500.0,0.00016438,2]
[337812870,1726129396901,-212.96888623,0.00016438,2]
[337812871,1726129396925,-728.83,0.00016438,2]
[337812872,1726129396948,-500.0,0.00016438,2]
[337812873,1726129396971,-500.0,0.00016438,2]
[337812874,1726129396996,-500.0,0.00016438,2]
[337812875,1726129397022,-500.0,0.00016438,2]
[337812876,1726129397051,-663.3,0.00016438,2]
[337812877,1726129397075,-500.0,0.00016438,2]
[337812878,1726129397099,-727.12,0.00016438,2]
[337812879,1726129397121,-500.0,0.00016438,2]
[337812880,1726129397145,-1375.73,0.00016438,2]
[337812881,1726129397169,-500.0,0.00016438,2]
[337812882,1726129397200,-500.0,0.00016438,2]
[337812883,1726129397224,-500.0,0.00016438,2]
[337812884,1726129397251,-500.0,0.00016438,2]
[337812885,1726129397276,-1667.89153236,0.00016438,2]
[337812886,1726129453329,-3721.50808211,0.00016338,2]
[337812887,1726129453355,-300.0,0.00016437,2]
[337812888,1726129453381,-5269.17846764,0.00016438,2]
[337812889,1726129453406,-500.0,0.00016438,2]
[337812890,1726129453432,-591.99,0.00016438,2]
[337812891,1726129453456,-526.44,0.00016438,2]
[337812892,1726129453484,-500.0,0.00016438,2]
[337812893,1726129453510,-500.0,0.00016438,2]
[337812894,1726129453536,-500.0,0.00016438,2]
[337812895,1726129453561,-200.0,0.00016438,2]
[337812896,1726129453585,-643.07,0.00016438,2]
[337812897,1726129453609,-757.62,0.00016438,2]
[337812898,1726129453633,-500.0,0.00016438,2]
[337812899,1726129453657,-500.0,0.00016438,2]
[337812900,1726129453681,-605.81,0.00016438,2]
[337812901,1726129453706,-500.0,0.00016438,2]
[337812902,1726129453729,-500.0,0.00016438,2]
[337812903,1726129453755,-500.0,0.00016438,2]
[337812904,1726129453780,-500.0,0.00016438,2]
[337812905,1726129453804,-500.0,0.00016438,2]
[337812906,1726129453829,-500.0,0.00016438,2]
[337812907,1726129453853,-613.24,0.00016438,2]
[337812908,1726129454073,-898.76,0.00016438,2]
[337812909,1726129454105,-500.0,0.00016438,2]
[337812910,1726129454130,-500.0,0.00016438,2]
[337812911,1726129454157,-500.0,0.00016438,2]
[337812912,1726129454181,-500.0,0.00016438,2]
[337812913,1726129454205,-501.37851169,0.00016438,2]
[337812914,1726129454229,-500.0,0.00016438,2]
[337812915,1726129454254,-500.0,0.00016438,2]
[337812916,1726129454278,-500.0,0.00016438,2]
[337812917,1726129454302,-497.85493373,0.00016438,2]
[337812918,1726129454325,-500.0,0.00016438,2]
[337812919,1726129454348,-500.0,0.00016438,2]
[337812920,1726129454371,-500.0,0.00016438,2]
[337812921,1726129454394,-500.0,0.00016438,2]
[337812922,1726129454418,-695.06,0.00016438,2]
[337812923,1726129454441,-500.0,0.00016438,2]
[337812924,1726129454465,-500.0,0.00016438,2]
[337812925,1726129454498,-841.12,0.00016438,2]
[337812926,1726129454522,-500.0,0.00016438,2]
[337812927,1726129454546,-500.0,0.00016438,2]
[337812928,1726129454569,-500.0,0.00016438,2]
[337812929,1726129454593,-500.0,0.00016438,2]
[337812930,1726129454617,-500.0,0.00016438,2]
[337812931,1726129454642,-500.0,0.00016438,2]
[337812932,1726129454665,-500.0,0.00016438,2]
[337812933,1726129454689,-500.0,0.00016438,2]
[337812934,1726129454712,-546.76,0.00016438,2]
[337812935,1726129454735,-500.0,0.00016438,2]
[337812936,1726129454760,-500.0,0.00016438,2]
[337812937,1726129454784,-501.72141836,0.00016438,2]
[337812938,1726129454807,-500.0,0.00016438,2]
[337812939,1726129454830,-500.0,0.00016438,2]
[337812940,1726129454853,-500.0,0.00016438,2]
[337812941,1726129454875,-500.0,0.00016438,2]
[337812942,1726129454899,-500.0,0.00016438,2]
[337812943,1726129454922,-500.0,0.00016438,2]
[337812944,1726129454946,-500.0,0.00016438,2]
[337812945,1726129454971,-500.0,0.00016438,2]
[337812946,1726129454995,-500.0,0.00016438,2]